bitfinex-derivatives/quotes_SOLF0:USTF0_20260108
["timestamp","ask_amount","ask_price","bid_price","bid_amount"]
[1767880679550,1.89153689,134.48,134.38,9.09365899]
[1767880679750,1.89153689,134.48,134.38,2.19593016]
[1767880680344,87.98,134.49,134.39,0.30439327]
[1767880680550,1.89153689,134.48,134.39,0.30439327]
[1767880681356,6.7017,134.47,134.4,6.705]
[1767880681855,6.7022,134.46,134.39,0.30439327]
[1767880683662,6.7022,134.46,134.38,8.59713689]
[1767880684556,8.59373689,134.46,134.38,8.90285901]
[1767880685062,6.7027,134.45,134.38,8.90285901]
[1767880688471,6.702,134.47,134.4,2.21249535]
[1767880689662,192.1641,134.53,134.42,2.21249535]
[1767880689865,1.89153689,134.52,134.43,0.32095846]
[1767880690568,6.7002,134.5,134.43,7.02445846]
[1767880691060,6.6994,134.52,134.45,6.7024]
[1767880691263,1.89153689,134.54,134.45,1.89153689]
[1767880692259,1.89153689,134.52,134.43,2.21249535]
[1767880692468,6.6997,134.51,134.44,6.703]
[1767880693365,104.2099,134.52,134.43,0.32095846]
[1767880693867,6.7001,134.51,134.43,0.32095846]
[1767880694057,192.1699,134.52,134.43,0.32095846]
[1767880694261,195.12334807,134.52,134.43,0.32095846]
[1767880694968,6.7014,134.48,134.4,0.32095846]
[1767880695367,217.49334807,134.52,134.41,0.32095846]
[1767880695763,87.94,134.51,134.41,0.32095846]
[1767880696671,6.7007,134.49,134.42,6.7041]
[1767880697372,6.7012,134.48,134.41,0.32095846]
[1767880698673,6.7012,134.48,134.41,7.02545846]
[1767880698972,6.7017,134.47,134.41,0.32095846]
[1767880701173,192.1611,134.51,134.41,7.02545846]
[1767880702578,6.7012,134.48,134.41,7.02545846]
[1767880705381,6.7012,134.48,134.42,6.7041]
[1767880711980,6.7012,134.48,134.43,0.32095846]
[1767880712377,6.7012,134.48,134.42,6.7041]
[1767880712681,6.7012,134.48,134.41,7.03734669]
[1767880712880,87.94,134.51,134.39,0.33274669]
[1767880712881,107.18694807,134.49,134.39,0.33274669]
[1767880713084,104.2435,134.48,134.39,0.33274669]
[1767880713288,192.1835,134.48,134.39,0.33274669]
[1767880713983,6.7027,134.45,134.39,7.03834669]
[1767880714488,6.7021,134.46,134.39,7.03834669]
[1767880715283,104.2509,134.47,134.37,0.33274669]
[1767880716183,6.7039,134.43,134.37,0.33274669]
[1767880721787,6.7029,134.45,134.37,0.33274669]
[1767880722991,6.7029,134.45,134.38,0.33274669]
[1767880724084,6.7029,134.45,134.38,7.03864669]
[1767880725094,6.7031,134.44,134.38,7.03864669]
[1767880725389,104.256,134.46,134.36,0.33274669]
[1767880726580,6.7036,134.43,134.36,7.03984669]
[1767880729597,6.7036,134.43,134.37,7.03924669]
[1767880732997,6.7036,134.43,134.37,6.7065]
[1767880733189,6.7036,134.43,134.38,0.33274669]
[1767880733900,6.7031,134.44,134.38,7.03874669]
[1767880735297,6.7031,134.44,134.39,0.33274669]
[1767880736002,6.7031,134.44,134.38,6.706]
[1767880736203,6.7037,134.43,134.37,0.33274669]
[1767880736999,6.7041,134.42,134.37,7.03924669]
[1767880737300,104.2572,134.46,134.38,0.33274669]
[1767880737505,126.5974,134.5,134.39,0.33274669]
[1767880737807,104.2274,134.5,134.39,0.33274669]
[1767880738504,6.702,134.47,134.41,7.03734669]
[1767880738800,104.206,134.53,134.41,0.33274669]
[1767880739007,6.7006,134.5,134.43,6.7036]
[1767880739207,87.96,134.52,134.43,6.7036]
[1767880740106,214.5426,134.52,134.41,0.33274669]
[1767880741209,6.7005,134.5,134.42,0.33274669]
[1767880742113,6.6996,134.51,134.44,6.703]
[1767880747812,6.7001,134.5,134.44,6.703]
[1767880748011,6.7001,134.5,134.43,7.014367]
[1767880749316,6.7001,134.5,134.44,0.310767]
[1767880750716,87.94,134.52,134.4,6.89772883]
[1767880750717,22.37,134.51,134.4,6.89772883]
[1767880751020,107.15014807,134.54,134.44,0.310767]
[1767880751021,129.52014807,134.54,134.44,0.310767]
[1767880751220,104.1967,134.54,134.44,0.310767]
[1767880752625,6.6996,134.51,134.45,6.7026]
[1767880753022,1.88998161,134.53,134.44,0.310767]
[1767880753223,6.7002,134.5,134.44,0.310767]
[1767880756230,1.88998161,134.53,134.44,0.310767]
[1767880756231,6.7007,134.49,134.44,0.310767]
[1767880757131,6.7007,134.49,134.42,2.20074861]
[1767880757631,6.7007,134.49,134.42,8.90454861]
[1767880758028,1.88998161,134.52,134.43,0.310767]
[1767880758532,87.92,134.53,134.44,2.20074861]
[1767880758730,89.80998161,134.53,134.44,2.20074861]
[1767880758931,6.6985,134.54,134.48,1.88998161]
[1767880759430,6.6985,134.54,134.47,0.310767]
[1767880760528,6.6985,134.54,134.48,6.7008]
[1767880762537,6.6985,134.54,134.47,7.012367]
[1767880763234,8.58758161,134.55,134.48,7.011767]
[1767880763736,6.6981,134.54,134.48,7.011767]
[1767880763939,0.09197972,134.59,134.51,0.310767]
[1767880764235,0.09197972,134.59,134.49,104.2297]
[1767880764236,0.09197972,134.59,134.52,2.20074861]
[1767880764435,0.09197972,134.59,134.53,0.310767]
[1767880765935,0.09197972,134.58,134.51,0.310767]
[1767880766932,0.09197972,134.57,134.49,0.310767]
[1767880767230,126.5206,134.6,134.49,0.310767]
[1767880767231,0.09197972,134.55,134.49,0.310767]
[1767880767933,6.78967972,134.55,134.47,7.012067]
[1767880768533,0.09197972,134.54,134.47,7.012067]
[1767880769135,0.09197972,134.58,134.48,2.20074861]
[1767880769335,0.09197972,134.58,134.5,2.20074861]
[1767880770538,6.6968,134.57,134.5,8.90074861]
[1767880771834,87.9,134.62,134.5,8.90074861]
[1767880771835,0.33334248,134.63,134.54,0.310767]
[1767880772031,0.33334248,134.63,134.57,1.88998161]
[1767880772235,0.33334248,134.63,134.54,0.310767]
[1767880772439,6.6949,134.61,134.55,1.88998161]
[1767880772639,0.33334248,134.63,134.55,1.88998161]
[1767880772640,0.32457494,134.62,134.55,1.88998161]
[1767880773946,6.6951,134.6,134.55,1.88998161]
[1767880774440,0.32457494,134.61,134.54,0.310767]
[1767880774640,6.6961,134.58,134.51,0.30784477]
[1767880774838,7.02067494,134.58,134.52,1.88998161]
[1767880777249,0.32457494,134.58,134.48,88.18784477]
[1767880777546,0.32457494,134.57,134.49,1.88998161]
[1767880778452,0.32457494,134.57,134.49,2.19782638]
[1767880778656,6.6976,134.55,134.49,0.30784477]
[1767880778850,6.6976,134.55,134.49,2.19782638]
[1767880782260,0.32457494,134.57,134.49,2.19782638]
[1767880783560,0.32457494,134.55,134.49,2.19782638]
[1767880785562,6.6971,134.56,134.49,8.89822638]
[1767880786161,7.02167494,134.56,134.49,8.89822638]
[1767880788059,7.02167494,134.56,134.5,0.30784477]
[1767880788257,7.02167494,134.56,134.5,7.00794477]
[1767880789366,7.02167494,134.56,134.5,0.30784477]
[1767880790354,6.6976,134.55,134.5,0.30784477]
[1767880792961,6.6976,134.55,134.48,7.00864477]
[1767880793165,7.02217494,134.55,134.48,8.89862638]
[1767880794273,7.02217494,134.55,134.49,6.7005]
[1767880794577,6.6982,134.54,134.48,0.30784477]
[1767880794765,7.02277494,134.54,134.48,0.30784477]
[1767880794965,0.32457494,134.53,134.46,0.30784477]
[1767880795976,6.6992,134.52,134.46,0.30784477]
[1767880796478,7.02377494,134.52,134.46,0.30784477]
[1767880796679,7.02377494,134.52,134.45,87.88]
[1767880796871,7.02377494,134.52,134.44,9.09555521]
[1767880796872,6.6997,134.51,134.44,9.09555521]
[1767880797270,6.6997,134.51,134.44,2.19782638]
[1767880797470,7.02427494,134.51,134.44,2.19782638]
[1767880797874,6.7001,134.5,134.44,8.90092638]
[1767880798068,0.32457494,134.5,134.44,2.19782638]
[1767880798273,0.32457494,134.5,134.44,0.30784477]
[1767880799581,7.02497494,134.5,134.44,0.30784477]
[1767880800379,7.02567494,134.48,134.42,1.88998161]
[1767880800975,0.32457494,134.47,134.4,6.7048]
[1767880801682,6.7026,134.45,134.39,2.19782638]
[1767880802580,7.01239803,134.46,134.41,1.88998161]
[1767880803186,7.01239803,134.46,134.39,7.01334477]
[1767880803373,6.7027,134.45,134.4,1.88998161]
[1767880803579,7.01279803,134.45,134.4,1.88998161]
[1767880803777,7.01279803,134.45,134.38,1.88998161]
[1767880804179,7.01329803,134.44,134.37,7.01816361]
[1767880804377,7.01329803,134.44,134.37,2.20184522]
[1767880804579,0.31009803,134.44,134.37,0.31186361]
[1767880804882,0.31009803,134.44,134.37,1.88998161]
[1767880805282,6.7037,134.43,134.37,1.88998161]
[1767880806189,7.02083891,134.43,134.37,1.88998161]
[1767880806992,0.31713891,134.43,134.35,2.2021622]
[1767880807182,0.31713891,134.43,134.37,2.2021622]
[1767880808188,0.31713891,134.43,134.37,0.31218059]
[1767880808782,0.31713891,134.42,134.36,1.88998161]
[1767880809175,0.31713891,134.42,134.35,6.7072]
[1767880809383,0.31713891,134.42,134.36,1.88998161]
[1767880809584,0.31713891,134.42,134.36,8.59698161]
[1767880813285,7.02133891,134.42,134.36,1.88998161]
[1767880814589,7.02133891,134.42,134.35,7.01968059]
[1767880817696,7.02133891,134.42,134.36,0.31218059]
[1767880818992,104.2662,134.45,134.35,6.7075]
[1767880818993,7.02183891,134.41,134.35,7.01968059]
[1767880819193,0.31713891,134.41,134.35,0.31218059]
[1767880819495,0.31713891,134.41,134.33,94.92028059]
[1767880820693,6.7052,134.4,134.33,94.92028059]
[1767880821300,0.31713891,134.39,134.33,94.92028059]
[1767880825602,6.7052,134.4,134.34,7.02008059]
[1767880831004,7.02233891,134.4,134.34,0.31218059]
[1767880835304,7.02233891,134.4,134.34,7.02008059]
[1767880835502,117.6653,134.46,134.34,7.02008059]
[1767880835503,140.0353,134.46,134.35,0.31364968]
[1767880835708,0.31724776,134.44,134.37,0.31364968]
[1767880836504,0.31724776,134.46,134.39,0.31364968]
[1767880837107,7.01994776,134.45,134.39,0.31364968]
[1767880837302,0.31724776,134.44,134.38,6.7061]
[1767880839910,0.31724776,134.43,134.36,9.66428799]
[1767880840102,0.31724776,134.43,134.36,6.7067]
[1767880841811,7.02144776,134.42,134.35,0.31364968]
[1767880842314,7.02144776,134.42,134.35,7.02124968]
[1767880845408,0.31724776,134.42,134.35,0.31364968]
[1767880845600,0.31724776,134.4,134.33,7.02174968]
[1767880846415,0.31724776,134.4,134.34,6.7079]
[1767880846603,0.31724776,134.4,134.34,7.02154968]
[1767880848218,7.02244776,134.4,134.34,0.31364968]
[1767880849843,0.31724776,134.4,134.34,0.31364968]
[1767880851733,0.31724776,134.4,134.34,7.02164968]
[1767880853237,0.31724776,134.4,134.35,0.31364968]
[1767880856938,7.02254776,134.4,134.35,0.31364968]
[1767880857136,7.02254776,134.4,134.29,127.08973346]
[1767880857137,0.31724776,134.38,134.3,0.31364968]
[1767880857328,0.31724776,134.37,134.28,0.31364968]
[1767880857529,6.7086,134.34,134.28,7.02474968]
[1767880858130,0.31724776,134.36,134.29,6.7105]
[1767880858332,0.31724776,134.36,134.28,0.31364968]
[1767880858738,6.7083,134.34,134.28,0.31364968]
[1767880859443,0.31724776,134.34,134.28,0.31364968]
[1767880860039,7.02554776,134.34,134.28,0.31364968]
[1767880860539,6.7086,134.33,134.28,0.31364968]
[1767880860837,6.7086,134.33,134.27,6.7115]
[1767880860838,0.31724776,134.34,134.26,0.31364968]
[1767880861636,6.7091,134.32,134.26,0.31364968]
[1767880863338,0.31296845,134.32,134.23,6.7135]
[1767880863745,0.31296845,134.32,134.22,2.95758799]
[1767880863934,0.31296845,134.29,134.19,6.89772883]
[1767880864136,0.31296845,134.28,134.18,9.85531682]
[1767880864347,0.31296845,134.26,134.18,2.95758799]
[1767880864643,0.31296845,134.31,134.22,2.95758799]
[1767880865136,0.30894489,134.28,134.17,111.37582883]
[1767880865335,0.30894489,134.28,134.2,0.26395927]
[1767880866541,6.7123,134.26,134.2,0.26395927]
[1767880866736,7.02124489,134.26,134.2,0.26395927]
[1767880867748,0.30894489,134.25,134.18,3.22154726]
[1767880869349,0.30894489,134.25,134.18,9.93744726]
[1767880869953,0.30894489,134.25,134.19,0.26395927]
[1767880872062,0.30894489,134.25,134.19,6.97945927]
[1767880875470,192.4117,134.29,134.21,0.26395927]
[1767880875471,7.02034489,134.28,134.21,0.26395927]
[1767880876551,7.02034489,134.28,134.22,1.89643946]
[1767880876868,0.30894489,134.25,134.19,0.26395927]
[1767880877068,0.30894489,134.25,134.19,2.16039873]
[1767880878567,0.30894489,134.25,134.19,8.87589873]
[1767880879768,6.7123,134.26,134.19,8.87589873]
[1767880881967,6.7123,134.26,134.19,6.97945927]
[1767880882161,6.7123,134.26,134.2,1.89643946]
[1767880882162,7.02124489,134.26,134.2,1.89643946]
[1767880885176,6.7126,134.25,134.2,1.89643946]
[1767880885678,7.02154489,134.25,134.19,0.26395927]
[1767880885976,7.02204489,134.24,134.18,1.89643946]
[1767880886775,0.30894489,134.23,134.18,1.89643946]
[1767880887871,6.7151,134.21,134.15,1.89643946]
[1767880888272,6.7153,134.2,134.14,6.98205927]
[1767880888480,6.7153,134.2,134.15,1.89643946]
[1767880889186,6.7153,134.2,134.14,6.98205927]
[1767880889478,6.7153,134.2,134.15,1.89643946]
[1767880889666,0.30894489,134.22,134.17,1.89643946]
[1767880889872,0.30894489,134.25,134.19,2.16039873]
[1767880891579,6.7131,134.24,134.19,2.16039873]
[1767880891771,6.7131,134.24,134.19,0.26395927]
[1767880893074,6.7131,134.24,134.18,6.7161]
[1767880893467,6.7136,134.23,134.17,2.16104671]
[1767880894067,0.32258904,134.22,134.15,90.24104671]
[1767880894383,0.32258904,134.2,134.14,1.89643946]
[1767880894675,0.32258904,134.2,134.13,0.26460725]
[1767880895072,6.7156,134.19,134.13,8.87964671]
[1767880897475,6.7162,134.18,134.13,2.16104671]
[1767880897682,0.32258904,134.2,134.11,2.16104671]
[1767880898571,6.7166,134.17,134.11,2.16104671]
[1767880899479,6.7166,134.17,134.11,0.26460725]
[1767880899682,6.7171,134.16,134.11,0.26460725]
[1767880901292,6.7171,134.16,134.11,2.16104671]
[1767880903485,6.7171,134.16,134.1,1.89643946]
[1767880903486,7.03968904,134.16,134.1,1.89643946]
[1767880903686,7.03968904,134.16,134.09,88.34460725]
[1767880903883,7.03968904,134.16,134.1,1.89643946]
[1767880904285,0.32258904,134.16,134.1,8.61633946]
[1767880905187,0.32258904,134.16,134.1,6.7199]
[1767880905378,0.32258904,134.16,134.1,8.61633946]
[1767880906787,0.32258904,134.16,134.1,8.88094671]
[1767880911087,0.32258904,134.21,134.14,1.89643946]
[1767880911288,0.32258904,134.21,134.14,2.16104671]
[1767880912294,7.03738904,134.21,134.14,8.87904671]
[1767880914395,0.32258904,134.2,134.14,8.87904671]
[1767880914694,0.32258904,134.2,134.15,6.7175]
[1767880917097,0.32258904,134.2,134.15,8.61393946]
[1767880917900,0.32258904,134.23,134.16,6.717]
[1767880918086,0.32258904,134.23,134.17,1.89643946]
[1767880918998,7.03618904,134.23,134.17,1.89643946]
[1767880920003,7.03618904,134.23,134.12,199.51028984]
[1767880920004,0.32258904,134.2,134.12,0.3184842]
[1767880920705,0.32258904,134.18,134.12,7.0374842]
[1767880920901,0.32258904,134.18,134.1,1.89643946]
[1767880921109,0.32258904,134.17,134.11,6.7196]
[1767880922694,0.32258904,134.17,134.12,6.7191]
[1767880923902,7.03928904,134.17,134.11,1.89643946]
[1767880924303,7.03928904,134.17,134.11,2.20217316]
[1767880925406,0.32258904,134.17,134.11,8.92157316]
[1767880925710,0.32258904,134.17,134.11,2.20217316]
[1767880926615,0.32258904,134.17,134.12,6.719]
[1767880927604,0.3083459,134.2,134.13,2.22121658]
[1767880927810,0.3083459,134.2,134.14,0.32477712]
[1767880928807,0.3083459,134.2,134.14,7.04287712]
[1767880930810,7.0235459,134.2,134.14,7.04287712]
[1767880931912,7.0235459,134.2,134.13,1.89643946]
[1767880931913,0.3083459,134.19,134.12,0.32477712]
[1767880932211,0.3083459,134.18,134.12,0.32477712]
[1767880933007,7.0247459,134.18,134.12,0.32477712]
[1767880936508,6.7156,134.2,134.12,0.32477712]
[1767880936704,6.7156,134.2,134.14,0.32477712]
[1767880936705,7.0239459,134.2,134.14,0.32477712]
[1767880938005,0.3083459,134.19,134.14,0.32477712]
[1767880939413,0.3083459,134.19,134.13,6.7185]
[1767880940502,7.0240459,134.19,134.12,7.26417001]
[1767880940702,7.0240459,134.19,134.12,0.32477712]
[1767880941308,6.7149,134.21,134.14,0.32477712]
[1767880941811,6.7149,134.21,134.14,7.04267712]
[1767880942008,0.3083459,134.22,134.14,0.32477712]
[1767880942208,0.3083459,134.25,134.18,6.7159]
[1767880942415,0.3083459,134.25,134.17,0.32477712]
[1767880943507,0.3083459,134.24,134.17,7.04127712]
[1767880944915,0.3083459,134.24,134.18,0.32477712]
[1767880945511,6.7128,134.25,134.19,0.32477712]
[1767880945913,7.0211459,134.25,134.19,0.32477712]
[1767880946508,0.3083459,134.24,134.17,0.32477712]
[1767880947724,0.3083459,134.24,134.17,7.04127712]
[1767880954221,0.3083459,134.24,134.18,6.7161]
[1767880954424,0.3083459,134.24,134.18,7.04598132]
[1767880955222,95.16000159,134.26,134.19,7.04548132]
[1767880955531,7.04000159,134.26,134.2,0.32988132]
[1767880956328,7.04000159,134.26,134.2,7.04488132]
[1767880956928,6.7126,134.25,134.2,0.32988132]
[1767880957318,7.04040159,134.25,134.2,0.32988132]
[1767880958632,7.04040159,134.25,134.18,6.7157]
[1767880958826,7.04040159,134.25,134.18,7.04558132]
[1767880960326,0.32780159,134.24,134.14,7.27681886]
[1767880960530,0.32780159,134.24,134.14,0.32988132]
[1767880961130,0.32780159,134.22,134.14,0.32988132]
[1767880961530,6.7147,134.21,134.14,7.04798132]
[1767880962728,6.7151,134.2,134.14,7.04798132]
[1767880963129,7.04290159,134.2,134.14,0.32988132]
[1767880966335,0.32780159,134.2,134.14,0.32988132]
[1767880967432,6.7161,134.18,134.14,0.32988132]
[1767880968137,7.04340159,134.2,134.14,0.32988132]
[1767880969529,6.7163,134.18,134.12,0.32988132]
[1767880970140,0.32780159,134.19,134.13,0.32988132]
[1767880970141,7.04340159,134.19,134.13,0.32988132]
[1767880971634,0.32780159,134.19,134.13,0.32988132]
[1767880972040,0.32780159,134.19,134.11,0.32988132]
[1767880973240,6.7163,134.18,134.12,6.7191]
[1767880973942,7.04340159,134.19,134.12,6.7191]
[1767880974940,0.32780159,134.22,134.15,6.7174]
[1767880975142,0.32780159,134.22,134.15,0.32988132]
[1767880976642,7.04200159,134.22,134.16,6.717]
[1767880977244,7.04200159,134.22,134.15,0.32988132]
[1767880979639,7.04200159,134.22,134.16,0.32988132]
[1767880980740,0.32780159,134.2,134.14,7.04798132]
[1767880981736,7.04320159,134.2,134.14,0.32988132]
[1767880984445,6.7161,134.18,134.12,0.31685388]
[1767880984649,0.31153904,134.19,134.11,6.7191]
[1767880985151,7.04640434,134.17,134.1,7.26379142]
[1767880985552,0.32980434,134.16,134.1,7.26379142]
[1767880985746,7.04710434,134.16,134.1,0.31685388]
[1767880988258,7.04780434,134.15,134.08,0.31760653]
[1767880989654,7.04780434,134.15,134.08,7.03860653]
[1767880991239,0.32980434,134.15,134.09,7.03810653]
[1767880994757,7.04740434,134.15,134.09,0.31760653]
[1767880995361,0.32980434,134.15,134.09,0.31760653]
[1767880995861,0.32980434,134.15,134.09,7.03820653]
[1767880996657,0.32980434,134.15,134.07,6.95447746]
[1767880996658,0.32980434,134.14,134.07,13.99328399]
[1767880996863,0.32980434,134.14,134.07,0.31760653]
[1767880997363,0.32980434,134.13,134.06,0.31760653]
[1767880998547,0.32980434,134.13,134.06,8.94046227]
[1767880998548,7.04860434,134.13,134.06,8.94046227]
[1767880999253,7.04860434,134.13,134.07,0.31760653]
[1767881002753,0.32980434,134.12,134.06,7.03960653]
[1767881003668,6.7188,134.13,134.05,1.90085574]
[1767881003669,0.32980434,134.11,134.05,1.90085574]
[1767881004164,7.04940434,134.11,134.05,8.62345574]
[1767881004867,6.7202,134.1,134.05,1.90085574]
[1767881005056,6.7202,134.1,134.04,0.31760653]
[1767881006356,6.7202,134.1,134.04,7.04060653]
[1767881006759,7.05000434,134.1,134.04,7.04060653]
[1767881007166,0.32980434,134.09,134.03,8.62445574]
[1767881007359,7.05050434,134.09,134.03,8.62445574]
[1767881007760,7.05050434,134.09,134.03,1.90085574]
[1767881009268,7.05050434,134.09,134.02,95.18170653]
[1767881009471,7.05050434,134.09,134.03,1.90085574]
[1767881010362,7.05050434,134.09,134.02,97.08256227]
[1767881010970,1.90085574,134.11,134.02,90.35846227]
[1767881010971,0.32980434,134.07,134.02,90.35846227]
[1767881011371,0.32980434,134.07,134.02,0.31760653]
[1767881011758,0.32980434,134.07,134.0,1.90085574]
[1767881011966,7.05160434,134.07,134.0,0.31760653]
[1767881012163,7.05160434,134.07,134.0,2.21846227]
[1767881012661,0.30277177,134.06,134.0,0.31760653]
[1767881013668,0.30277177,134.06,134.0,7.04270653]
[1767881014366,6.7221,134.06,134.0,0.31760653]
[1767881014569,0.30277177,134.05,133.98,7.04183669]
[1767881014770,0.30277177,134.05,133.99,0.31613669]
[1767881014967,0.30277177,134.07,134.0,2.21699243]
[1767881015274,0.30277177,134.07,134.0,8.94209243]
[1767881015774,7.02487177,134.06,134.0,0.31613669]
[1767881016166,0.30277177,134.04,133.98,0.31613669]
[1767881017073,0.30277177,134.04,133.98,2.21699243]
[1767881019373,0.30277177,134.03,133.98,2.21699243]
[1767881019574,0.30277177,134.03,133.98,0.31613669]
[1767881021471,0.30277177,134.03,133.96,8.62755574]
[1767881021472,0.30277177,134.03,133.94,0.31613669]
[1767881021675,0.30277177,134.0,133.94,0.31613669]
[1767881021879,0.30277177,134.0,133.94,2.21699243]
[1767881022073,0.30277177,134.02,133.96,2.21699243]
[1767881022281,0.30277177,134.02,133.96,0.31613669]
[1767881022475,90.10085574,134.04,133.97,0.31613669]
[1767881022476,0.30277177,134.04,133.97,0.31613669]
[1767881023381,0.30277177,134.03,133.97,0.31613669]
[1767881024377,0.30277177,134.02,133.95,8.94429243]
[1767881025677,7.02717177,134.02,133.95,8.94429243]
[1767881026379,0.30277177,134.02,133.95,8.94429243]
[1767881027483,0.30277177,134.02,133.96,2.21699243]
[1767881027684,0.30277177,134.02,133.96,0.31613669]
[1767881028281,2.20362751,134.0,133.91,0.31613669]
[1767881028477,2.20362751,134.0,133.92,0.31613669]
[1767881028981,0.30277177,134.0,133.92,0.31613669]
[1767881029186,2.20362751,134.0,133.92,0.31613669]
[1767881029584,7.02797177,134.0,133.93,7.04443669]
[1767881029786,8.92882751,134.0,133.93,7.04443669]
[1767881030096,0.30277177,133.99,133.93,7.04443669]
[1767881030588,7.02837177,133.99,133.93,0.31613669]
[1767881031389,6.7261,133.98,133.93,0.31613669]
[1767881031583,7.02887177,133.98,133.91,2.21699243]
[1767881031991,7.02887177,133.98,133.91,8.94659243]
[1767881032587,7.02887177,133.98,133.92,0.31613669]
[1767881033193,126.48370384,134.05,133.95,0.31613669]
[1767881033385,126.48370384,134.05,133.92,106.1755]
[1767881033386,0.30277177,134.03,133.97,1.90085574]
[1767881033780,7.02637177,134.03,133.97,1.90085574]
[1767881035092,7.02637177,134.03,133.96,7.04323669]
[1767881035297,6.7241,134.02,133.96,8.94409243]
[1767881037389,0.30277177,134.03,133.96,8.94409243]
[1767881037790,0.30277177,134.03,133.97,6.7263]
[1767881038287,0.30277177,134.02,133.96,2.21699243]
[1767881038681,0.30277177,134.02,133.96,0.31613669]
[1767881039082,0.30277177,134.02,133.95,1.90085574]
[1767881039386,0.30277177,134.01,133.94,0.31613669]
[1767881039577,0.30277177,134.0,133.94,0.31613669]
[1767881039984,0.30277177,133.99,133.92,88.53613669]
[1767881040184,0.30277177,133.99,133.93,2.21699243]
[1767881040694,0.30277177,133.99,133.93,0.31613669]
[1767881041685,0.30277177,134.01,133.93,0.31613669]
[1767881041891,0.30277177,134.01,133.92,1.90085574]
[1767881041892,0.30277177,134.01,133.95,0.31613669]
[1767881042285,6.7251,134.0,133.95,0.31613669]
[1767881042485,0.32029009,133.99,133.92,0.30320875]
[1767881042892,0.32029009,133.99,133.92,2.20406449]
[1767881043599,7.04589009,133.99,133.92,0.30320875]
[1767881043792,0.32029009,133.99,133.92,2.20406449]
[1767881043997,90.14085574,134.02,133.89,192.9339]
[1767881043998,90.46114583,134.02,133.95,0.30320875]
[1767881044495,6.7251,134.0,133.95,0.30320875]
[1767881045594,7.04539009,134.0,133.94,1.90085574]
[1767881045788,0.32029009,133.99,133.94,1.90085574]
[1767881046486,7.04479009,134.02,133.95,0.30320875]
[1767881046693,0.32029009,134.02,133.96,1.90085574]
[1767881047087,0.32029009,134.02,133.95,0.30320875]
[1767881048090,1.90085574,134.05,133.96,2.20406449]
[1767881048290,0.32590456,134.04,133.97,0.3066713]
[1767881048495,0.32590456,134.04,133.98,1.90085574]
[1767881048701,0.32590456,134.04,133.97,0.3066713]
[1767881048889,0.32590456,134.04,133.97,8.93412704]
[1767881049492,0.32590456,134.04,133.97,7.0332713]
[1767881049796,7.04910456,134.04,133.97,8.93412704]
[1767881049998,7.04910456,134.04,133.98,1.90085574]
[1767881050998,7.04910456,134.04,133.98,8.62695574]
[1767881051201,7.04910456,134.04,133.98,6.7261]
[1767881051395,7.04910456,134.04,133.98,8.62695574]
[1767881052293,0.32590456,134.03,133.97,0.3066713]
[1767881054003,0.32590456,134.03,133.97,2.20752704]
[1767881054301,6.7232,134.04,133.98,0.3066713]
[1767881054800,6.7232,134.04,133.98,2.20752704]
[1767881054995,7.04860456,134.05,133.98,2.20752704]
[1767881055893,0.32590456,134.04,133.98,0.3066713]
[1767881056205,0.32590456,134.03,133.96,2.20752704]
[1767881057199,0.32590456,134.02,133.96,0.3066713]
[1767881057394,0.32590456,134.02,133.94,6.96845353]
[1767881057602,0.32590456,134.0,133.93,6.96845353]
[1767881057902,0.32590456,134.0,133.93,9.17598057]
[1767881058205,0.32590456,134.0,133.93,7.27512483]
[1767881058596,0.32590456,134.0,133.93,14.00362483]
[1767881058799,0.32590456,134.0,133.93,15.90448057]
[1767881059299,0.32590456,133.97,133.88,6.96845353]
[1767881059595,0.32590456,133.93,133.85,7.27512483]
[1767881059802,1.90085574,133.94,133.87,0.3066713]
[1767881059990,5.53721933,133.93,133.87,0.3066713]
[1767881060190,0.32590456,133.94,133.87,0.3066713]
[1767881060698,0.32590456,133.92,133.83,6.96845353]
[1767881060898,0.32590456,133.92,133.82,0.3066713]
[1767881061100,0.32590456,133.92,133.83,0.3066713]
[1767881061502,0.32590456,133.92,133.85,0.3066713]
[1767881062398,95.29350456,133.95,133.85,0.3066713]
[1767881062603,5.85120898,133.94,133.85,0.3066713]
[1767881062805,0.32590456,133.94,133.85,0.3066713]
[1767881063317,88.24,133.96,133.87,0.3066713]
[1767881063599,0.32590456,133.94,133.87,0.3066713]
[1767881064016,0.32590456,133.96,133.87,0.3066713]
[1767881064209,0.32590456,133.96,133.89,0.3066713]
[1767881065215,0.32590456,133.95,133.86,7.0382713]
[1767881065504,0.32590456,133.95,133.87,0.3066713]
[1767881066903,0.32590456,133.95,133.88,0.3066713]
[1767881067208,7.05220456,133.98,133.89,0.3066713]
[1767881067410,5.84558796,133.97,133.89,0.3066713]
[1767881067611,0.32590456,133.97,133.89,0.3066713]
[1767881069918,0.32590456,133.97,133.89,7.0370713]